bitfinex/quotes_BTCUSD_20251027
["timestamp","ask_amount","ask_price","bid_price","bid_amount"]
[1761598914372,2.23935174,114460.0,114450.0,0.21617489]
[1761598914552,1.26096792,114460.0,114450.0,0.21617489]
[1761598915059,0.47493874,114460.0,114450.0,0.21617489]
[1761598915201,1.26096792,114460.0,114450.0,0.21617489]
[1761598916550,1.33096792,114460.0,114450.0,0.21617489]
[1761598919244,1.33096792,114460.0,114450.0,0.16029489]
[1761598919422,1.33096792,114460.0,114450.0,0.21621489]
[1761598921265,1.3671502,114460.0,114450.0,0.21621489]
[1761598923286,1.3671502,114460.0,114450.0,0.06209489]
[1761598923475,1.3671502,114460.0,114450.0,0.21621489]
[1761598927774,1.3671502,114460.0,114450.0,0.06209489]
[1761598927775,1.76016479,114460.0,114450.0,0.06209489]
[1761598928022,1.76016479,114460.0,114450.0,0.21621489]
[1761598931041,0.58112102,114460.0,114450.0,0.21621489]
[1761598931243,1.76016479,114460.0,114450.0,0.21621489]
[1761598931881,1.3671502,114460.0,114450.0,0.21621489]
[1761598932739,1.76016479,114460.0,114450.0,0.21621489]
[1761598933840,1.3671502,114460.0,114450.0,0.21621489]
[1761598934267,1.62804687,114460.0,114450.0,0.21621489]
[1761598935126,1.62804687,114460.0,114450.0,0.00617489]
[1761598935335,1.62804687,114460.0,114450.0,0.21621489]
[1761598935537,1.65427983,114460.0,114450.0,0.21621489]
[1761598936760,1.26126524,114460.0,114450.0,0.21621489]
[1761598936956,1.65427983,114460.0,114450.0,0.21621489]
[1761598937747,1.26144149,114460.0,114450.0,0.21621489]
[1761598940273,1.28487573,114460.0,114450.0,0.21621489]
[1761598941063,1.26144149,114460.0,114450.0,0.21621489]
[1761598941688,0.86825065,114460.0,114450.0,0.21621489]
[1761598941907,0.09312885,114460.0,114450.0,0.44305368]
[1761598942115,0.07448662,114460.0,114450.0,0.83624452]
[1761598942562,0.07448662,114460.0,114450.0,0.44305368]
[1761598942563,0.00448662,114460.0,114450.0,0.44305368]
[1761598942779,0.00448662,114460.0,114450.0,0.83624452]
[1761598943201,0.00048662,114460.0,114450.0,0.83224452]
[1761598943652,0.00448662,114460.0,114450.0,0.45305368]
[1761598943861,0.00448662,114460.0,114450.0,0.84624452]
[1761598944305,0.00448662,114460.0,114450.0,0.45305368]
[1761598944523,0.00448662,114460.0,114450.0,0.84624452]
[1761598944760,0.00448662,114460.0,114450.0,0.45305368]
[1761598944969,0.00448662,114460.0,114450.0,0.84624452]
[1761598945609,0.00448662,114460.0,114450.0,0.24301368]
[1761598945836,0.00448662,114460.0,114450.0,0.62777368]
[1761598947174,0.00448662,114460.0,114450.0,1.02096452]
[1761598948855,0.00448662,114460.0,114450.0,0.62777368]
[1761598949059,0.00448662,114460.0,114450.0,1.02096452]
[1761598956588,0.00448662,114460.0,114450.0,0.62777368]
[1761598956793,0.00448662,114460.0,114450.0,0.47369368]
[1761598956945,0.00448662,114460.0,114450.0,0.62773368]
[1761598957151,0.00448662,114460.0,114450.0,0.57564368]
[1761598957376,0.00448662,114460.0,114450.0,0.62677368]
[1761598961516,0.00448662,114460.0,114450.0,1.41315536]
[1761598961720,0.00057529,114490.0,114480.0,0.174703]
[1761598961860,0.00057529,114490.0,114480.0,0.39664868]
[1761598962061,0.00057529,114490.0,114480.0,0.43589868]
[1761598963757,0.00357529,114490.0,114480.0,0.44489868]
[1761598966433,0.17826303,114490.0,114480.0,0.27019568]
[1761598966646,2.27884887,114490.0,114480.0,0.00914568]
[1761598966861,1.76800587,114490.0,114480.0,0.21906568]
[1761598968368,1.76800587,114490.0,114480.0,0.06502568]
[1761598968596,1.76800587,114490.0,114480.0,0.21906568]
[1761598968795,1.76500587,114490.0,114480.0,0.21006568]
[1761598969065,1.79269996,114490.0,114480.0,0.21206568]
[1761598971340,1.80082706,114490.0,114480.0,0.21206568]
[1761598975099,1.76487906,114490.0,114480.0,0.21206568]
[1761598975527,1.54829006,114490.0,114480.0,0.21206568]
[1761598975971,1.54016296,114490.0,114480.0,0.21206568]
[1761598978159,1.21856796,114490.0,114480.0,0.21206568]
[1761598978394,1.21856796,114490.0,114480.0,0.43907868]
[1761598978395,0.00957529,114490.0,114480.0,0.43907868]
[1761598984977,0.00957529,114490.0,114480.0,0.83226952]
[1761598985639,0.00957529,114490.0,114480.0,0.43907868]
[1761598985839,0.00057529,114490.0,114480.0,0.43707868]
[1761598986265,0.00257529,114490.0,114480.0,0.43807868]
[1761598987025,0.00257529,114490.0,114480.0,0.83126952]
[1761598998346,0.00257529,114490.0,114480.0,1.56446036]
[1761598998554,0.00257529,114490.0,114480.0,1.17126952]
[1761598999871,0.00257529,114490.0,114480.0,1.56349034]
[1761599001917,0.03525178,114530.0,114500.0,0.00873362]
[1761599002142,0.00448,114540.0,114530.0,0.17462673]
[1761599002372,0.00448,114540.0,114530.0,0.35559673]
[1761599002373,0.39718583,114540.0,114530.0,0.35559673]
[1761599002608,0.39718583,114540.0,114530.0,0.37943673]
[1761599003089,0.00448,114540.0,114530.0,0.37943673]
[1761599003327,0.00448,114550.0,114540.0,0.1746033]
[1761599003546,0.00462608,114550.0,114540.0,0.2656333]
[1761599003757,0.00014608,114550.0,114540.0,0.2813333]
[1761599004684,0.01014608,114550.0,114540.0,0.2833333]
[1761599006008,0.00014608,114550.0,114540.0,0.2813333]
[1761599006215,0.00014608,114550.0,114540.0,0.67403913]
[1761599006419,0.00114608,114550.0,114540.0,0.67503913]
[1761599006630,0.00014608,114550.0,114540.0,0.2813333]
[1761599007090,0.00014608,114550.0,114540.0,0.2823333]
[1761599007091,0.00314608,114550.0,114540.0,0.2823333]
[1761599007689,0.00314608,114550.0,114540.0,0.67503913]
[1761599008157,0.00439604,114550.0,114540.0,1.06774496]
[1761599008324,0.00439604,114550.0,114540.0,0.67503913]
[1761599009994,0.00439604,114550.0,114540.0,0.2823333]
[1761599010174,0.00439604,114550.0,114540.0,0.67503913]
[1761599013890,0.00439604,114550.0,114540.0,1.06774496]
[1761599018599,0.00439604,114550.0,114540.0,0.2264533]
[1761599018809,0.39158187,114560.0,114550.0,0.17459624]
[1761599019013,0.3916669,114560.0,114550.0,0.32851624]
[1761599019225,0.3916669,114560.0,114550.0,0.34417624]
[1761599019437,0.75187515,114560.0,114550.0,0.35584624]
[1761599020059,0.36729328,114560.0,114550.0,0.35684624]
[1761599020254,0.36729328,114560.0,114550.0,0.38111624]
[1761599020456,0.93906011,114560.0,114550.0,0.35684624]
[1761599020675,0.40447911,114560.0,114550.0,0.35684624]
[1761599021095,0.00729328,114560.0,114550.0,0.38111624]
[1761599023001,0.00729328,114560.0,114550.0,0.77382207]
[1761599024437,0.36729328,114560.0,114550.0,0.77382207]
[1761599026078,0.36729328,114560.0,114550.0,0.38111624]
[1761599026285,0.36729328,114560.0,114550.0,0.77382207]
[1761599027099,0.3754057,114560.0,114550.0,0.77382207]
[1761599027787,0.3754057,114560.0,114550.0,0.38111624]
[1761599027929,0.3754057,114560.0,114550.0,0.77382207]
[1761599028591,0.37540909,114560.0,114550.0,0.38111624]
[1761599029006,0.37540909,114560.0,114550.0,0.77382207]
[1761599030187,0.3754167,114560.0,114550.0,0.77382207]
[1761599032565,0.3754167,114560.0,114550.0,0.38111624]
[1761599042133,0.3798967,114560.0,114550.0,0.20292624]
[1761599042354,0.94718353,114560.0,114550.0,0.55987624]
[1761599042558,0.94718353,114560.0,114550.0,0.57632624]
[1761599042965,0.94718353,114560.0,114550.0,0.58781624]
[1761599044144,0.94718353,114560.0,114550.0,0.61140624]
[1761599044520,0.94718353,114560.0,114550.0,0.58781624]
[1761599046192,0.58718353,114560.0,114550.0,0.58781624]
[1761599046647,0.1944777,114560.0,114550.0,0.58781624]
[1761599046854,0.58718353,114560.0,114550.0,0.58781624]
[1761599047972,0.58718353,114560.0,114550.0,0.55987624]
[1761599048410,0.58718353,114560.0,114550.0,0.57597624]
[1761599051022,0.41260253,114560.0,114550.0,0.58768624]
[1761599051461,0.0154167,114560.0,114550.0,0.61158624]
[1761599051868,0.01543845,114560.0,114550.0,0.61158624]
[1761599052318,0.00729328,114560.0,114550.0,0.61158624]
[1761599053355,0.36729328,114560.0,114550.0,0.61158624]
[1761599053611,0.00729328,114560.0,114550.0,0.61158624]
[1761599053834,0.18187428,114560.0,114550.0,0.61158624]
[1761599054053,0.97176594,114560.0,114550.0,0.38528]
[1761599054264,0.98439026,114560.0,114550.0,0.2314]
[1761599054681,1.00315191,114560.0,114550.0,0.38524]
[1761599055317,1.02935833,114560.0,114550.0,0.38524]
[1761599057823,1.38935833,114560.0,114550.0,0.38524]
[1761599058035,1.02935833,114560.0,114550.0,0.38524]
[1761599059088,1.02121401,114560.0,114550.0,0.38524]
[1761599059641,1.02934903,114560.0,114550.0,0.38524]
[1761599059901,0.6283123,114560.0,114550.0,0.38524]
[1761599060092,0.63644732,114560.0,114550.0,0.38524]
[1761599060291,0.61768567,114560.0,114550.0,0.38524]
[1761599061893,0.61320567,114560.0,114550.0,0.38524]
[1761599062444,0.61768567,114560.0,114550.0,0.38524]
[1761599062857,0.97768567,114560.0,114550.0,0.38524]
[1761599063065,0.61320567,114560.0,114550.0,0.38524]
[1761599063809,0.61768567,114560.0,114550.0,0.38524]
[1761599064337,0.60507065,114560.0,114550.0,0.38524]
[1761599065516,0.2125607,114560.0,114550.0,0.57593624]
[1761599065720,0.2080807,114560.0,114550.0,0.61154624]
[1761599066994,0.0334997,114560.0,114550.0,0.61154624]
[1761599067828,0.2080807,114560.0,114550.0,0.61154624]
[1761599067975,0.3934997,114560.0,114550.0,0.61154624]
[1761599068175,0.2080807,114560.0,114550.0,0.61154624]
[1761599068704,0.2125607,114560.0,114550.0,0.55983624]
[1761599068891,0.2125607,114560.0,114550.0,0.57556624]
[1761599069288,0.0334997,114560.0,114550.0,0.61222624]
[1761599072847,0.3934997,114560.0,114550.0,0.61222624]
[1761599073047,0.0334997,114560.0,114550.0,0.61222624]
[1761599076162,0.0334997,114560.0,114550.0,1.00473619]
[1761599076382,0.02342526,114600.0,114580.0,0.17455053]
[1761599076648,0.43200424,114600.0,114590.0,0.15388]
[1761599076883,0.58481166,114600.0,114590.0,0.38425529]
[1761599077085,0.6342266,114600.0,114590.0,0.38425529]
[1761599077312,0.64308274,114600.0,114590.0,0.38425529]
[1761599077559,0.62434388,114600.0,114590.0,0.38425529]
[1761599078381,0.62834388,114600.0,114590.0,0.38429529]
[1761599078845,0.62834388,114600.0,114590.0,0.20976]
[1761599079057,0.97534388,114600.0,114590.0,0.21076]
[1761599079513,0.97534388,114600.0,114590.0,0.21072]
[1761599079919,0.97534388,114600.0,114590.0,0.15488]
[1761599080173,1.36785383,114600.0,114590.0,0.001]
[1761599080395,2.44741635,114600.0,114590.0,0.05684]
[1761599080657,2.49983977,114600.0,114590.0,0.05684]
[1761599080867,2.5277359,114600.0,114590.0,0.21072]
[1761599082760,2.50439616,114600.0,114590.0,0.21072]
[1761599083140,2.50522884,114600.0,114590.0,0.21072]
[1761599084624,2.08859584,114600.0,114590.0,0.21072]
[1761599084820,1.94677984,114600.0,114590.0,0.21072]
[1761599085056,1.79872256,114600.0,114590.0,0.21072]
[1761599085262,0.99944747,114600.0,114590.0,0.21072]
[1761599086043,0.98073295,114600.0,114590.0,0.21072]
[1761599086417,0.97625295,114600.0,114590.0,0.21072]
[1761599087168,0.583743,114600.0,114590.0,0.21072]
[1761599087367,0.97625295,114600.0,114590.0,0.21072]
[1761599087734,0.588223,114600.0,114590.0,0.21072]
[1761599088022,0.97625295,114600.0,114590.0,0.21072]
[1761599088541,0.97625295,114600.0,114590.0,0.22645]
[1761599088742,0.97625295,114600.0,114590.0,0.2383]
[1761599089162,0.97625295,114600.0,114590.0,0.43764529]
[1761599089163,0.39133041,114600.0,114590.0,0.43764529]
[1761599089287,0.2177156,114600.0,114590.0,0.43764529]
[1761599089892,0.2221956,114600.0,114590.0,0.41283529]
[1761599090146,0.61470555,114600.0,114590.0,0.23826]
[1761599090347,0.61470555,114600.0,114590.0,0.38521529]
[1761599090551,0.61470555,114600.0,114590.0,0.21068]
[1761599091201,0.61470555,114600.0,114590.0,0.22641]
[1761599091747,0.2221956,114600.0,114590.0,0.22641]
[1761599091953,0.61470555,114600.0,114590.0,0.22641]
[1761599092392,0.61470555,114600.0,114590.0,0.21068]
[1761599092571,0.627884,114600.0,114590.0,0.21068]
[1761599092966,2.60059611,114600.0,114590.0,0.15484]
[1761599093205,2.65265342,114600.0,114590.0,0.21068]
[1761599094398,2.55578342,114600.0,114590.0,0.21068]
[1761599094930,1.48232752,114600.0,114590.0,0.21068]
[1761599095151,1.13522647,114600.0,114590.0,0.21068]
[1761599095554,0.97600116,114600.0,114590.0,0.21068]
[1761599095839,0.97152116,114600.0,114590.0,0.22641]
[1761599096191,0.97152116,114600.0,114590.0,0.21068]
[1761599096827,0.57901121,114600.0,114590.0,0.21068]
[1761599097027,0.97152116,114600.0,114590.0,0.21068]
[1761599097823,0.97600116,114600.0,114590.0,0.21068]
[1761599099064,0.97152116,114600.0,114590.0,0.21068]
[1761599099265,0.97600116,114600.0,114590.0,0.21068]
[1761599099595,0.99024024,114600.0,114590.0,0.22613]
[1761599099987,0.59773029,114600.0,114590.0,0.21068]
[1761599100221,0.99024024,114600.0,114590.0,0.21068]
[1761599100420,1.38723019,114600.0,114590.0,0.21068]
[1761599100660,1.59687019,114600.0,114590.0,0.21068]
[1761599102105,0.60221029,114600.0,114590.0,0.21068]
[1761599102311,0.99472024,114600.0,114590.0,0.21068]
[1761599103537,0.23901121,114600.0,114590.0,0.22613]
[1761599103763,0.62704116,114600.0,114590.0,0.26165]
[1761599103957,0.63152116,114600.0,114590.0,0.23832]
[1761599106653,0.63152116,114600.0,114590.0,0.23793]
[1761599108251,0.63152116,114600.0,114590.0,0.21068]
[1761599108651,0.63152116,114600.0,114590.0,0.22574]
[1761599111755,1.02851111,114600.0,114590.0,0.21068]
[1761599112187,1.04725388,114600.0,114590.0,0.21068]
[1761599112823,1.04725622,114600.0,114590.0,0.21068]
[1761599114087,0.26223632,114600.0,114590.0,0.21068]
[1761599114300,1.04725622,114600.0,114590.0,0.21068]
[1761599115826,0.65474627,114600.0,114590.0,0.21068]
[1761599116465,1.04725622,114600.0,114590.0,0.21068]
[1761599121750,1.0468194,114600.0,114590.0,0.21068]
[1761599121945,2.47226394,114600.0,114590.0,0.21068]
[1761599122192,2.09624469,114600.0,114590.0,0.21068]
[1761599122379,2.43624469,114600.0,114590.0,0.21068]
[1761599122542,1.67509299,114600.0,114590.0,0.21068]
[1761599122742,2.85196761,114600.0,114590.0,0.21068]
[1761599124372,2.85652371,114600.0,114590.0,0.21068]
[1761599125633,2.84025142,114600.0,114590.0,0.21068]
[1761599126419,2.44795988,114600.0,114590.0,0.21068]
[1761599128322,2.84025142,114600.0,114590.0,0.001]
[1761599128552,4.06112259,114600.0,114590.0,0.001]
[1761599128765,4.0767457,114600.0,114590.0,0.08712]
[1761599128989,4.02987694,114600.0,114590.0,0.05684]
[1761599129196,4.09219161,114600.0,114590.0,0.09921605]
[1761599129412,4.02987694,114600.0,114590.0,0.09921605]
[1761599129905,4.01987694,114600.0,114590.0,0.09921605]
[1761599130148,4.02587694,114600.0,114590.0,0.09921605]
[1761599130407,4.06565825,114600.0,114590.0,0.09921605]
[1761599130611,4.06665825,114600.0,114590.0,0.09921605]
[1761599130978,4.07565825,114600.0,114590.0,0.09921605]
[1761599135328,4.10680392,114600.0,114590.0,0.09921605]
[1761599136022,1.29914884,114570.0,114560.0,0.0174581]
[1761599136270,0.174581,114560.0,114550.0,0.18683493]
[1761599136498,0.96364408,114560.0,114550.0,0.24267493]
[1761599136731,0.96812408,114560.0,114550.0,0.25792493]
[1761599136956,0.96812408,114560.0,114550.0,0.41172493]
[1761599138544,0.96812408,114560.0,114550.0,0.38477493]
[1761599138765,0.97260408,114560.0,114550.0,0.38477493]
[1761599138995,0.96812408,114560.0,114550.0,0.38477493]
[1761599139211,0.96912408,114560.0,114550.0,0.39377493]
[1761599143328,0.96912408,114560.0,114550.0,0.40902493]
[1761599143530,0.96912408,114560.0,114550.0,0.42072493]
[1761599143734,0.57683254,114560.0,114550.0,0.42072493]
[1761599143949,0.96912408,114560.0,114550.0,0.42072493]
[1761599145812,0.96912408,114560.0,114550.0,0.44533493]
[1761599146044,0.57683254,114560.0,114550.0,0.44533493]
[1761599146638,0.57235254,114560.0,114550.0,0.44533493]
[1761599147592,0.96464408,114560.0,114550.0,0.44533493]
[1761599148984,0.57235254,114560.0,114550.0,0.44533493]
[1761599150016,0.57235254,114560.0,114550.0,0.61993117]
[1761599150442,0.57235254,114560.0,114550.0,0.44533493]
[1761599151035,0.57683254,114560.0,114550.0,0.42072493]
[1761599151234,0.57235254,114560.0,114550.0,0.44533493]
[1761599152458,0.57235254,114560.0,114550.0,0.61993117]
[1761599156178,0.001,114560.0,114550.0,1.40451425]
[1761599156383,0.24227344,114590.0,114570.0,0.51455206]
[1761599156384,0.04208409,114590.0,114570.0,0.51455206]
[1761599156608,0.0002,114600.0,114580.0,0.84561712]
[1761599156808,0.39297832,114600.0,114590.0,0.18623529]
[1761599157135,0.3936028,114600.0,114590.0,0.21084529]
[1761599157344,0.3936028,114600.0,114590.0,0.22609529]
[1761599158612,0.3936028,114600.0,114590.0,0.23009529]
[1761599160889,0.78589434,114600.0,114590.0,0.23009529]
[1761599162529,0.3936028,114600.0,114590.0,0.23009529]
[1761599163160,0.00131126,114600.0,114590.0,0.23009529]
[1761599163361,0.3936028,114600.0,114590.0,0.23009529]
[1761599163581,0.78589434,114600.0,114590.0,0.23009529]
[1761599163947,0.3936028,114600.0,114590.0,0.23009529]
[1761599171124,0.00131126,114600.0,114590.0,0.23009529]
[1761599171330,0.3936028,114600.0,114590.0,0.23009529]
[1761599173146,0.3936028,114600.0,114590.0,0.40461529]
[1761599176184,0.00131126,114600.0,114590.0,0.40461529]
[1761599176423,0.3936028,114600.0,114590.0,0.40461529]
[1761599178351,0.00131126,114600.0,114590.0,0.40461529]
[1761599178550,0.00131126,114600.0,114590.0,0.79690683]
[1761599180462,0.78589434,114600.0,114590.0,0.05556]
[1761599180677,1.3097944,114600.0,114590.0,0.23436]
[1761599180889,1.31789372,114600.0,114590.0,0.38812]
[1761599181762,1.31789372,114600.0,114590.0,0.004]
[1761599181973,1.71018526,114600.0,114590.0,0.004]
[1761599182185,0.53331064,114600.0,114590.0,0.2136]
[1761599182398,1.71018526,114600.0,114590.0,0.2136]
[1761599182626,0.17455053,114580.0,114570.0,0.0117]
[1761599182851,0.17456576,114570.0,114560.0,0.17452]
[1761599183071,0.96852884,114570.0,114560.0,0.38416]
[1761599183280,0.5762373,114570.0,114560.0,0.38416]
[1761599183465,0.5668573,114570.0,114560.0,0.41255]
[1761599183693,0.5668573,114570.0,114560.0,0.43619]
[1761599183912,0.57168834,114570.0,114560.0,0.41255]
[1761599184123,0.57168834,114570.0,114560.0,0.38716]
[1761599184328,0.57168834,114570.0,114560.0,0.38416]
[1761599185059,0.57168834,114570.0,114560.0,0.40018]
[1761599185268,0.57980019,114570.0,114560.0,0.38416]
[1761599185684,0.58180019,114570.0,114560.0,0.38416]
[1761599187238,0.58180019,114570.0,114560.0,0.40018]
[1761599187417,0.57368834,114570.0,114560.0,0.40018]
[1761599188007,0.57368834,114570.0,114560.0,0.41176]
[1761599188249,0.58179399,114570.0,114560.0,0.41176]
[1761599188379,0.57368834,114570.0,114560.0,0.41176]
[1761599188979,0.18125576,114570.0,114560.0,0.41176]
[1761599189201,0.57368834,114570.0,114560.0,0.41176]
[1761599195088,0.18125576,114570.0,114560.0,0.41176]
[1761599195345,0.002,114570.0,114560.0,1.00177358]
[1761599195792,0.002,114570.0,114560.0,0.609341]
[1761599196449,0.17475873,114580.0,114570.0,0.17456576]
[1761599196700,0.17475873,114580.0,114570.0,0.18614576]
[1761599196916,0.17475873,114580.0,114570.0,0.22503576]
[1761599197612,0.0002082,114580.0,114570.0,0.22503576]
[1761599197801,0.17475873,114580.0,114570.0,0.22503576]
[1761599198995,0.17475873,114580.0,114570.0,0.22803576]
[1761599199474,0.0002082,114580.0,114570.0,0.22803576]
[1761599205812,0.17475873,114580.0,114570.0,0.05347]
[1761599206038,0.57188131,114580.0,114570.0,0.22803576]
[1761599206241,0.57188131,114580.0,114570.0,0.38179576]
[1761599206619,0.17944873,114580.0,114570.0,0.38179576]
[1761599207252,0.17944873,114580.0,114570.0,0.37879576]
[1761599207633,0.17475873,114580.0,114570.0,0.37879576]
[1761599208693,0.17475873,114580.0,114570.0,0.22503576]
[1761599208924,0.17475873,114580.0,114570.0,0.60919576]
[1761599209134,0.57188131,114580.0,114570.0,0.02747]
[1761599209337,0.57188131,114580.0,114570.0,0.41163]
[1761599210282,0.17944873,114580.0,114570.0,0.58619576]
[1761599210535,0.57188131,114580.0,114570.0,0.58619576]
[1761599211034,0.57188131,114580.0,114570.0,0.41163]
[1761599212065,0.57188131,114580.0,114570.0,0.58619576]
[1761599212873,0.57657131,114580.0,114570.0,0.38416]
[1761599213050,0.57657131,114580.0,114560.0,0.209161]
[1761599213051,0.57188131,114580.0,114560.0,0.209161]
[1761599213256,0.57188131,114580.0,114570.0,0.38416]
[1761599214527,0.5846941,114580.0,114570.0,0.38416]
[1761599215306,0.58000461,114580.0,114570.0,0.38416]
[1761599216158,0.57388131,114580.0,114570.0,0.38416]
[1761599217207,0.57388131,114580.0,114570.0,0.40005]
[1761599217410,0.58200572,114580.0,114570.0,0.40005]
[1761599217866,0.65200572,114580.0,114570.0,0.40005]
[1761599218866,0.65200572,114580.0,114570.0,0.38416]
[1761599221611,0.25957558,114580.0,114570.0,0.38416]
[1761599221811,0.65200816,114580.0,114570.0,0.38416]
[1761599226078,0.65200816,114580.0,114570.0,0.39979]
[1761599226246,0.65200816,114580.0,114570.0,0.41137]
[1761599228038,0.65200816,114580.0,114570.0,0.02721]
[1761599228179,0.65200816,114580.0,114570.0,0.41137]
[1761599228790,0.65200816,114580.0,114570.0,0.02721]
[1761599229008,0.65200816,114580.0,114570.0,0.41137]
[1761599232744,0.65200816,114580.0,114570.0,0.02721]
[1761599232945,0.65200816,114580.0,114570.0,0.39574]
[1761599234264,0.17456576,114570.0,114560.0,0.209161]
[1761599234490,0.17456576,114570.0,114560.0,0.593321]
[1761599234746,0.17456576,114570.0,114560.0,0.608771]
[1761599237077,0.56699834,114570.0,114560.0,0.608771]
[1761599237284,0.17456576,114570.0,114560.0,0.608771]
[1761599237969,0.17925576,114570.0,114560.0,0.608771]
[1761599238595,0.17456576,114570.0,114560.0,0.608771]
[1761599241741,0.57168834,114570.0,114560.0,0.608771]
[1761599241958,0.57168834,114570.0,114560.0,0.585771]
[1761599243331,0.57168834,114570.0,114560.0,0.609371]
[1761599245310,0.59788867,114570.0,114560.0,0.609371]
[1761599245860,0.59784033,114570.0,114560.0,0.609371]
[1761599246319,0.59784033,114570.0,114550.0,0.14414493]
[1761599246542,0.59784033,114570.0,114550.0,0.30633493]
[1761599246543,0.9905521,114560.0,114550.0,0.30633493]
[1761599246764,0.99563589,114560.0,114550.0,0.51593493]
[1761599246980,1.02652995,114560.0,114550.0,0.51593493]
[1761599247201,1.00776726,114560.0,114550.0,0.51593493]
[1761599247865,1.00976726,114560.0,114550.0,0.51593493]
[1761599248300,1.00162354,114560.0,114550.0,0.51593493]
[1761599250658,0.99693354,114560.0,114550.0,0.51593493]
[1761599250875,1.00162354,114560.0,114550.0,0.51593493]
[1761599251314,0.21685506,114560.0,114550.0,0.51593493]
[1761599251529,1.00162354,114560.0,114550.0,0.51593493]
[1761599251944,1.00162354,114560.0,114550.0,0.46009493]
[1761599252150,1.00162354,114560.0,114550.0,0.51593493]
[1761599252601,1.00974953,114560.0,114550.0,0.51593493]
[1761599252807,1.34974953,114560.0,114550.0,0.51593493]
[1761599253015,1.36847145,114560.0,114550.0,0.51593493]
[1761599256466,1.34974953,114560.0,114550.0,0.51593493]
[1761599260152,1.34974953,114560.0,114550.0,0.36217493]
[1761599260354,1.34162354,114560.0,114550.0,0.51597493]
[1761599264314,3.74212301,114560.0,114550.0,0.51597493]
[1761599264514,3.5771306,114560.0,114550.0,0.51597493]
[1761599264657,3.39037706,114560.0,114550.0,0.51597493]
[1761599265072,2.21322434,114560.0,114550.0,0.51597493]
[1761599265280,1.36830382,114560.0,114550.0,0.51597493]
[1761599265566,1.37299382,114560.0,114550.0,0.51597493]
[1761599265771,0.98060958,114560.0,114550.0,0.51597493]
[1761599265977,0.95722212,114560.0,114550.0,0.69057117]
[1761599266822,1.34960636,114560.0,114550.0,0.51597493]
[1761599267325,1.35429636,114560.0,114550.0,0.51597493]
[1761599268968,1.35429636,114560.0,114550.0,0.69057117]
[1761599269411,1.35429636,114560.0,114550.0,0.51597493]
[1761599269877,1.35429889,114560.0,114550.0,0.51597493]
[1761599270210,1.37300501,114560.0,114550.0,0.51597493]
[1761599270945,1.56583101,114560.0,114550.0,0.51597493]
[1761599271159,1.37300501,114560.0,114550.0,0.51597493]
[1761599271810,1.59362101,114560.0,114550.0,0.51597493]
[1761599272014,1.56332101,114560.0,114550.0,0.51597493]
[1761599274833,1.37300501,114560.0,114550.0,0.51597493]
[1761599279774,1.44300501,114560.0,114550.0,0.51597493]
[1761599280278,1.63327701,114560.0,114550.0,0.51597493]
[1761599282294,1.65663612,114560.0,114550.0,0.13177493]
[1761599282510,1.65663612,114560.0,114550.0,0.51601493]
[1761599283691,1.65663612,114560.0,114550.0,0.13177493]
[1761599283893,1.65663612,114560.0,114550.0,0.51597493]
[1761599284345,1.63043206,114560.0,114550.0,0.51597493]
[1761599287052,0.84566358,114560.0,114550.0,0.51597493]
[1761599287261,1.41680095,114560.0,114550.0,0.51597493]
[1761599288475,1.41211095,114560.0,114550.0,0.51597493]
[1761599288670,1.41680095,114560.0,114550.0,0.51597493]
[1761599294918,1.41682435,114560.0,114550.0,0.51597493]
[1761599305895,1.0245642,114560.0,114550.0,0.51597493]
[1761599306682,0.63205596,114560.0,114550.0,0.51597493]
[1761599307217,1.0245642,114560.0,114550.0,0.51597493]
[1761599313055,1.0245642,114560.0,114550.0,0.13177493]
[1761599313306,1.0245642,114560.0,114550.0,0.34137493]
[1761599318888,1.0245642,114560.0,114550.0,0.51597493]
[1761599321702,2.43341431,114560.0,114550.0,0.51593493]
[1761599321922,1.36072331,114560.0,114550.0,0.51593493]
[1761599322138,1.25498731,114560.0,114550.0,0.51593493]
[1761599322597,0.86247907,114560.0,114550.0,0.51593493]
[1761599322820,1.25498731,114560.0,114550.0,0.51593493]
[1761599323037,1.25498731,114560.0,114550.0,0.28549493]
[1761599323255,1.28613298,114560.0,114550.0,0.18761493]
[1761599323481,1.28613298,114560.0,114550.0,0.34133493]
[1761599324363,1.28413298,114560.0,114550.0,0.34133493]
[1761599324592,1.28613298,114560.0,114550.0,0.34133493]
[1761599324920,1.28413298,114560.0,114550.0,0.34133493]
[1761599325127,1.28913298,114560.0,114550.0,0.34133493]
[1761599326080,1.29013298,114560.0,114550.0,0.34133493]
[1761599327327,1.29012732,114560.0,114550.0,0.34133493]
[1761599327991,1.29012732,114560.0,114550.0,0.34137493]
[1761599330659,1.25898165,114560.0,114550.0,0.34137493]
[1761599340079,1.18898165,114560.0,114550.0,0.34137493]
[1761599341807,1.25898165,114560.0,114550.0,0.34137493]
[1761599346386,1.25429165,114560.0,114550.0,0.34137493]
[1761599346751,1.25898165,114560.0,114550.0,0.34137493]
[1761599348321,1.20509193,114560.0,114550.0,0.34137493]
[1761599350469,1.2362376,114560.0,114550.0,0.34137493]
[1761599353519,1.23625468,114560.0,114550.0,0.34137493]
[1761599365825,1.65514377,114560.0,114550.0,0.34137493]
[1761599375737,1.65045377,114560.0,114550.0,0.34137493]
[1761599375954,1.6092171,114560.0,114550.0,0.34137493]
[1761599376175,1.7396461,114560.0,114550.0,0.34137493]
[1761599376382,1.46613382,114560.0,114550.0,0.34137493]
[1761599376798,1.07354056,114560.0,114550.0,0.34137493]
[1761599377011,1.46613382,114560.0,114550.0,0.34137493]
[1761599377438,0.6809473,114560.0,114550.0,0.34137493]
[1761599377686,0.6809473,114560.0,114550.0,0.39198493]
[1761599377687,0.31289819,114560.0,114550.0,0.39198493]
[1761599377861,1.04549145,114560.0,114550.0,0.39198493]
[1761599379650,0.65289819,114560.0,114550.0,0.56658117]
[1761599379853,1.04549145,114560.0,114550.0,0.56658117]
[1761599380277,0.31289819,114560.0,114550.0,0.56658117]
[1761599380513,0.70549145,114560.0,114550.0,0.56658117]
[1761599380905,0.31289819,114560.0,114550.0,0.56658117]
[1761599381046,0.67928064,114560.0,114550.0,0.56658117]
[1761599382165,1.0765639,114560.0,114550.0,0.36883493]
[1761599382489,0.68397064,114560.0,114550.0,0.36883493]
[1761599382695,0.68397064,114560.0,114550.0,0.39198493]
[1761599384224,0.68397064,114560.0,114550.0,0.56658117]
[1761599384679,0.68396384,114560.0,114550.0,0.56658117]
[1761599384949,0.67927384,114560.0,114550.0,0.56658117]
[1761599387278,0.66056772,114560.0,114550.0,0.56658117]
[1761599388800,0.66525772,114560.0,114550.0,0.56658117]
[1761599389179,1.05785098,114560.0,114550.0,0.56658117]
[1761599390524,1.06254098,114560.0,114550.0,0.34137493]
[1761599390954,1.08405703,114560.0,114550.0,0.34137493]
[1761599395188,1.08405703,114560.0,114550.0,0.35712493]
[1761599399198,1.10282663,114560.0,114550.0,0.35712493]
[1761599401657,1.10282663,114560.0,114550.0,0.53172117]